bitfinex/quotes_BTCUSD_20241211
["timestamp","ask_amount","ask_price","bid_price","bid_amount"]
[1733895641710,0.023,97533.0,97523.0,0.205078]
[1733895641896,0.12832524,97533.0,97523.0,0.205078]
[1733895642121,0.023,97531.0,97523.0,0.205078]
[1733895642500,0.023,97529.0,97523.0,0.205078]
[1733895642964,0.023,97529.0,97501.0,0.205125]
[1733895642965,0.173,97512.0,97499.0,0.02061264]
[1733895643161,0.12122258,97509.0,97498.0,0.004]
[1733895643297,0.15,97507.0,97489.0,0.005]
[1733895643504,0.15,97507.0,97480.0,0.01130267]
[1733895643505,0.023,97491.0,97480.0,0.01130267]
[1733895643929,0.205146,97492.0,97480.0,0.01130267]
[1733895643930,0.023,97489.0,97480.0,8.58e-05]
[1733895644143,0.023,97489.0,97481.0,0.205168]
[1733895644394,0.023,97487.0,97481.0,0.205168]
[1733895644603,0.023,97489.0,97481.0,0.205168]
[1733895644801,0.023,97495.0,97481.0,0.205168]
[1733895645039,0.023,97493.0,97480.0,0.0090858]
[1733895645445,0.023,97491.0,97480.0,0.0090858]
[1733895645857,0.023,97489.0,97480.0,0.0090858]
[1733895646233,0.023,97489.0,97480.0,8.58e-05]
[1733895646406,0.023,97487.0,97480.0,8.58e-05]
[1733895646587,0.023,97489.0,97480.0,8.58e-05]
[1733895646954,0.023,97487.0,97481.0,0.001]
[1733895647174,0.023,97487.0,97481.0,0.007]
[1733895647366,0.205145,97492.0,97480.0,8.58e-05]
[1733895647564,0.205145,97492.0,97480.0,0.0070858]
[1733895647775,0.003,97487.0,97480.0,0.0070858]
[1733895647992,0.003,97487.0,97480.0,8.58e-05]
[1733895648171,0.00551208,97486.0,97481.0,0.007]
[1733895648521,0.003,97487.0,97481.0,0.007]
[1733895648730,0.00551184,97485.0,97481.0,0.007]
[1733895648932,0.00551208,97486.0,97481.0,0.007]
[1733895649306,0.003,97487.0,97482.0,0.205166]
[1733895649519,0.003,97487.0,97482.0,0.410332]
[1733895649732,0.003,97487.0,97483.0,0.1243]
[1733895649979,0.01120834,97510.0,97483.0,0.22962524]
[1733895650188,0.01120834,97510.0,97503.0,0.20512]
[1733895650388,0.10532524,97517.0,97503.0,0.20512]
[1733895650613,0.205094,97516.0,97499.0,0.410258]
[1733895650838,0.00545995,97516.0,97499.0,0.205129]
[1733895651093,0.023,97515.0,97500.0,0.205127]
[1733895651503,0.00545923,97514.0,97500.0,0.205127]
[1733895651703,0.023,97513.0,97500.0,0.205127]
[1733895652090,0.00545917,97512.0,97500.0,0.205127]
[1733895652549,0.00545917,97512.0,97500.0,0.410254]
[1733895653515,0.00545917,97512.0,97500.0,0.411254]
[1733895653718,0.00545917,97512.0,97505.0,0.205117]
[1733895653954,0.00945917,97512.0,97505.0,0.205117]
[1733895654327,0.00545917,97512.0,97500.0,0.205127]
[1733895654530,0.00545917,97512.0,97510.0,0.205105]
[1733895654914,0.00016511,97518.0,97510.0,0.205105]
[1733895655329,0.0054649,97517.0,97510.0,0.205105]
[1733895655810,0.00016511,97518.0,97510.0,0.205105]
[1733895656168,0.00546506,97517.0,97510.0,0.205105]
[1733895656365,0.003,97512.0,97510.0,0.205105]
[1733895656970,0.00016511,97518.0,97510.0,0.417212]
[1733895657175,0.00016511,97518.0,97510.0,0.410212]
[1733895657374,0.002,97517.0,97510.0,0.410212]
[1733895657585,0.002,97517.0,97510.0,0.419212]
[1733895657959,0.00016511,97518.0,97511.0,0.205105]
[1733895658163,0.00216511,97518.0,97511.0,0.205105]
[1733895659160,0.00216511,97518.0,97510.0,0.212105]
[1733895659309,0.00216511,97518.0,97510.0,0.205105]
[1733895659521,0.00546417,97517.0,97505.0,0.205115]
[1733895659717,0.00546417,97517.0,97510.0,0.008]
[1733895659931,0.0797,97515.0,97503.0,0.01130171]
[1733895660144,0.0797,97515.0,97495.0,0.205137]
[1733895660339,0.2051,97513.0,97510.0,0.007]
[1733895660544,0.01908995,97512.0,97501.0,0.205125]
[1733895660751,0.00546324,97512.0,97501.0,0.205125]
[1733895660951,0.00546324,97512.0,97510.0,0.008]
[1733895661220,0.00546324,97512.0,97495.0,0.205137]
[1733895661221,0.228105,97511.0,97495.0,0.205137]
[1733895661351,0.228109,97509.0,97495.0,0.205137]
[1733895661549,0.433218,97509.0,97490.0,0.205147]
[1733895661773,0.433218,97509.0,97484.0,0.205159]
[1733895661774,0.023,97499.0,97484.0,0.205159]
[1733895662249,0.023,97497.0,97484.0,0.205159]
[1733895662480,0.023,97497.0,97480.0,0.2052538]
[1733895662481,0.205138,97495.0,97480.0,0.2052538]
[1733895662690,0.08515874,97496.0,97483.0,0.205163]
[1733895662894,0.00545826,97494.0,97483.0,0.205163]
[1733895663095,0.0054585,97495.0,97483.0,0.205163]
[1733895663302,0.0797,97496.0,97484.0,0.205161]
[1733895663506,0.0797,97496.0,97484.0,0.213161]
[1733895663507,0.00545826,97494.0,97484.0,0.213161]
[1733895663709,0.0797,97496.0,97484.0,0.205161]
[1733895663710,0.0054585,97495.0,97484.0,0.205161]
[1733895663930,0.00545827,97493.0,97481.0,0.205168]
[1733895664133,0.00545851,97494.0,97483.0,0.009]
[1733895664338,0.00545779,97492.0,97484.0,0.205161]
[1733895664546,0.00545803,97493.0,97484.0,0.205161]
[1733895664719,0.001,97494.0,97484.0,0.205161]
[1733895665156,0.00545803,97493.0,97484.0,0.205161]
[1733895665564,0.001,97492.0,97481.0,0.21614542]
[1733895665780,0.00645779,97492.0,97481.0,0.21614542]
[1733895665982,0.001,97492.0,97484.0,0.009]
[1733895666212,0.00545756,97491.0,97481.0,0.21614542]
[1733895666416,0.00545756,97491.0,97481.0,0.205168]
[1733895666623,0.00545756,97491.0,97484.0,0.009]
[1733895666826,0.00545756,97491.0,97481.0,0.205168]
[1733895667234,0.00545756,97491.0,97484.0,0.009]
[1733895667384,0.001,97493.0,97484.0,0.009]
[1733895667640,0.001,97493.0,97482.0,0.205166]
[1733895667845,0.00543641,97492.0,97484.0,0.009]
[1733895668430,0.001,97491.0,97484.0,0.009]
[1733895668629,0.00543658,97490.0,97484.0,0.009]
[1733895669058,0.00543658,97490.0,97481.0,0.205168]
[1733895669218,0.00543658,97490.0,97481.0,0.01110995]
[1733895669419,0.21058658,97490.0,97482.0,0.009]
[1733895669839,0.20516,97485.0,97480.0,8.58e-05]
[1733895670057,0.20516,97485.0,97484.0,0.009]
[1733895670461,0.20516,97485.0,97480.0,8.58e-05]
[1733895670462,0.205163,97483.0,97480.0,8.58e-05]
[1733895670697,0.023,97482.0,97480.0,8.58e-05]
[1733895670848,0.228168,97481.0,97480.0,8.58e-05]
[1733895671051,0.307868,97481.0,97480.0,8.58e-05]
[1733895672080,0.311868,97481.0,97480.0,8.58e-05]
[1733895672859,0.31726128,97481.0,97480.0,0.0040858]
[1733895673433,0.31726128,97481.0,97480.0,8.58e-05]
[1733895673434,0.31326128,97481.0,97480.0,8.58e-05]
[1733895673674,0.32814438,97481.0,97480.0,0.0050858]
[1733895673923,0.32814438,97481.0,97480.0,8.58e-05]
[1733895673924,0.43346962,97481.0,97480.0,8.58e-05]
[1733895674448,0.43346962,97481.0,97480.0,0.0050858]
[1733895674719,0.43346962,97481.0,97480.0,8.58e-05]
[1733895674978,0.42946962,97481.0,97480.0,8.58e-05]
[1733895675294,0.58346962,97481.0,97480.0,8.58e-05]
[1733895675788,0.60254272,97481.0,97480.0,8.58e-05]
[1733895676057,0.60254272,97481.0,97480.0,0.0030858]
[1733895676350,0.60254272,97481.0,97480.0,8.58e-05]
[1733895676515,0.59854272,97481.0,97480.0,0.0030858]
[1733895676939,0.59854272,97481.0,97480.0,8.58e-05]
[1733895677143,0.59854272,97481.0,97480.0,0.0010858]
[1733895677358,0.60354272,97481.0,97480.0,0.0010858]
[1733895677572,0.60354272,97481.0,97480.0,8.58e-05]
[1733895677782,0.59854272,97481.0,97480.0,8.58e-05]
[1733895678139,0.60354272,97481.0,97480.0,0.0010858]
[1733895679144,0.58446962,97481.0,97480.0,0.0010858]
[1733895684484,0.01039328,97481.0,97480.0,0.0010858]
[1733895685073,0.005,97481.0,97480.0,0.0790858]
[1733895685927,8.58e-05,97500.0,97480.0,0.0790858]
[1733895686133,8.58e-05,97500.0,97495.0,0.205138]
[1733895686991,8.58e-05,97500.0,97495.0,0.410276]
[1733895687194,0.0040858,97500.0,97495.0,0.410276]
[1733895687605,8.58e-05,97500.0,97497.0,0.205134]
[1733895688013,0.0020858,97500.0,97497.0,0.205134]
[1733895688625,0.0020858,97500.0,97497.0,0.2261625]
[1733895689239,8.58e-05,97500.0,97497.0,0.2261625]
[1733895689657,0.0020858,97500.0,97497.0,0.2261625]
[1733895690080,8.58e-05,97500.0,97497.0,0.2351625]
[1733895690499,8.58e-05,97500.0,97497.0,0.2371625]
[1733895693362,8.58e-05,97500.0,97497.0,0.2351625]
[1733895693765,8.58e-05,97500.0,97497.0,0.2281625]
[1733895693965,8.58e-05,97500.0,97497.0,0.2371625]
[1733895694580,8.58e-05,97500.0,97497.0,0.011]
[1733895695522,0.0054865,97499.0,97497.0,0.009]
[1733895697099,8.58e-05,97500.0,97497.0,0.011]
[1733895697461,8.58e-05,97500.0,97497.0,0.002]
[1733895697580,8.58e-05,97500.0,97497.0,0.011]
[1733895697787,0.0054865,97499.0,97497.0,0.011]
[1733895698018,8.58e-05,97500.0,97497.0,0.002]
[1733895698635,8.58e-05,97500.0,97495.0,0.205138]
[1733895698836,8.58e-05,97500.0,97497.0,0.002]
[1733895699253,8.58e-05,97500.0,97497.0,0.011]
[1733895699843,8.58e-05,97500.0,97495.0,0.205138]
[1733895699957,0.0020858,97500.0,97497.0,0.009]
[1733895700572,8.58e-05,97500.0,97497.0,0.009]
[1733895701800,8.58e-05,97500.0,97495.0,0.205138]
[1733895702353,8.58e-05,97500.0,97490.0,0.2160644]
[1733895702569,0.0020858,97500.0,97490.0,0.2160644]
[1733895702807,0.0020858,97500.0,97490.0,0.0001716]
[1733895702931,8.58e-05,97500.0,97490.0,0.0001716]
[1733895703322,0.00548714,97499.0,97491.0,0.205147]
[1733895703698,0.00548714,97499.0,97497.0,0.009]
[1733895704146,8.58e-05,97500.0,97491.0,0.205147]
[1733895704373,8.58e-05,97500.0,97490.0,0.0001716]
[1733895704374,0.0020858,97500.0,97490.0,0.0091716]
[1733895704806,0.00548714,97499.0,97490.0,0.0001716]
[1733895705012,0.00548714,97499.0,97497.0,0.009]
[1733895705469,0.00548714,97499.0,97490.0,0.0001716]
[1733895705665,0.00548714,97499.0,97490.0,0.0091716]
[1733895706104,0.00648714,97499.0,97490.0,0.0091716]
[1733895706529,0.00548714,97499.0,97490.0,0.0091716]
[1733895706968,0.00648714,97499.0,97490.0,0.2143206]
[1733895707296,0.001,97499.0,97490.0,0.2143206]
[1733895707499,0.001,97499.0,97490.0,0.2053206]
[1733895707700,0.001,97499.0,97497.0,0.009]
[1733895708124,0.00546924,97498.0,97490.0,0.2053206]
[1733895708324,0.001,97499.0,97490.0,0.2143206]
[1733895708734,0.001,97499.0,97490.0,0.2053206]
[1733895709111,8.58e-05,97500.0,97497.0,0.009]
[1733895709339,0.20513,97499.0,97490.0,0.0001716]
[1733895709497,0.21159948,97499.0,97490.0,0.0001716]
[1733895709700,0.00646948,97499.0,97490.0,0.0001716]
[1733895710063,0.00546948,97499.0,97490.0,0.2053196]
[1733895710882,0.00546948,97499.0,97490.0,0.2143196]
[1733895711236,0.00646948,97499.0,97490.0,0.0091716]
[1733895712382,0.205132,97498.0,97490.0,0.0091716]
[1733895712613,0.21060124,97498.0,97490.0,0.0091716]
[1733895713258,0.00546924,97498.0,97490.0,0.0091716]
[1733895713778,0.00546924,97498.0,97490.0,0.0001716]
[1733895714002,8.58e-05,97500.0,97490.0,0.0001716]
[1733895714201,0.0793,97496.0,97490.0,0.0091716]
[1733895714604,0.0054679,97495.0,97490.0,0.0091716]
[1733895715006,0.0054679,97495.0,97490.0,0.0001716]
[1733895715377,0.0054679,97495.0,97490.0,0.0091716]
[1733895715587,0.0054679,97495.0,97490.0,0.0001716]
[1733895716954,0.0054679,97495.0,97490.0,0.0091716]
[1733895717521,0.0064679,97495.0,97490.0,0.0091716]
[1733895718164,0.0064679,97495.0,97491.0,0.410292]
[1733895718165,0.001,97495.0,97491.0,0.410292]
[1733895719338,8.58e-05,97500.0,97497.0,0.205134]
[1733895720777,0.0020858,97500.0,97497.0,0.410268]
[1733895721232,0.0020858,97500.0,97499.0,0.20513]
[1733895721435,0.0020858,97500.0,97499.0,0.31045524]
[1733895721847,0.0020858,97500.0,97499.0,0.44830153]
[1733895722248,0.0020858,97500.0,97499.0,1.40508745]
[1733895722455,8.58e-05,97500.0,97499.0,1.17537617]
[1733895723213,8.58e-05,97500.0,97499.0,1.17637617]
[1733895723413,8.58e-05,97500.0,97499.0,1.40605937]
[1733895723598,8.58e-05,97500.0,97499.0,1.17637617]
[1733895724249,8.58e-05,97500.0,97499.0,1.17537617]
[1733895724636,8.58e-05,97500.0,97499.0,1.41405642]
[1733895725425,8.58e-05,97500.0,97499.0,1.43465767]
[1733895725650,0.0001716,97560.0,97530.0,0.12122258]
[1733895725860,0.0001716,97560.0,97538.0,0.205048]
[1733895726102,0.0001716,97560.0,97539.0,0.10532524]
[1733895726103,0.00055063,97540.0,97539.0,0.10532524]
[1733895726307,0.00055063,97540.0,97539.0,0.29302524]
[1733895726513,0.00055063,97540.0,97539.0,0.53912894]
[1733895727593,0.00055063,97540.0,97539.0,0.54212894]
[1733895728566,0.00055063,97540.0,97539.0,0.55112894]
[1733895728764,0.00055063,97540.0,97539.0,0.54812894]
[1733895729176,0.00055063,97540.0,97539.0,1.08462894]
[1733895729585,0.00055063,97540.0,97539.0,1.08762894]
[1733895729795,0.00155063,97540.0,97539.0,1.08762894]
[1733895730208,0.0001716,97560.0,97549.0,0.355025]
[1733895730410,0.0003367,97550.0,97549.0,0.46035024]
[1733895731583,0.0003367,97550.0,97549.0,0.46935024]
[1733895731737,0.0003367,97550.0,97549.0,0.54505024]
[1733895731941,0.0003367,97550.0,97549.0,0.69505024]
[1733895732168,0.0003367,97550.0,97549.0,1.23155024]
[1733895732614,0.0003367,97550.0,97549.0,1.38455024]
[1733895733027,0.0003367,97550.0,97549.0,1.38155024]
[1733895733184,0.0003367,97550.0,97549.0,1.41194627]
[1733895733388,0.0003367,97550.0,97549.0,1.38455024]
[1733895733820,0.0003367,97550.0,97549.0,1.37555024]
[1733895734270,0.0003367,97550.0,97549.0,1.39530995]
[1733895734485,0.0003367,97550.0,97549.0,1.38630995]
[1733895734907,0.0003367,97550.0,97549.0,1.39230995]
[1733895735117,0.0003367,97550.0,97549.0,1.38330995]
[1733895735322,0.0013367,97550.0,97549.0,1.38730995]
[1733895735529,0.0013367,97550.0,97549.0,1.39630995]
[1733895735678,0.0003367,97550.0,97549.0,1.38330995]
[1733895736123,0.0003367,97550.0,97549.0,1.38730995]
[1733895736124,0.0013367,97550.0,97549.0,1.38730995]
[1733895737299,0.0013367,97550.0,97549.0,1.39630995]
[1733895742779,0.0001716,97560.0,97559.0,0.205004]
[1733895742991,0.0001716,97560.0,97559.0,0.31032924]
[1733895743433,0.0001716,97560.0,97559.0,0.73752924]
[1733895743863,0.0001716,97560.0,97559.0,0.31032924]
[1733895743988,0.0001716,97560.0,97556.0,0.205008]
[1733895744996,0.0001716,97560.0,97559.0,0.009]
[1733895745197,0.0001716,97560.0,97556.0,0.205008]
[1733895745425,0.0001716,97560.0,97556.0,0.410018]
[1733895745597,0.0001716,97560.0,97556.0,0.419018]
[1733895745910,0.0001716,97560.0,97556.0,0.410018]
[1733895746099,0.0001716,97560.0,97558.0,0.205006]
[1733895747816,0.0001716,97560.0,97559.0,0.009]
[1733895748253,0.0001716,97560.0,97558.0,0.205006]
[1733895748454,0.0001716,97560.0,97558.0,0.214006]
[1733895748830,0.0001716,97560.0,97558.0,0.205006]
[1733895749024,0.0001716,97560.0,97559.0,0.009]
[1733895750075,0.0001716,97560.0,97559.0,0.11432524]
[1733895750282,0.0001716,97560.0,97559.0,0.31322524]
[1733895750509,0.015,97569.0,97568.0,0.204985]
[1733895750727,0.015,97569.0,97568.0,0.31031024]
[1733895750980,0.015,97569.0,97568.0,0.46031024]
[1733895751189,0.015,97569.0,97568.0,0.61031024]
[1733895751755,0.015,97569.0,97568.0,0.61231024]
[1733895751943,0.015,97569.0,97568.0,0.62131024]
[1733895752346,0.015,97569.0,97568.0,0.61031024]
[1733895752754,0.015,97569.0,97568.0,0.61431024]
[1733895753645,0.015,97569.0,97568.0,0.62526348]
[1733895753854,0.015,97569.0,97568.0,0.63426348]
[1733895753979,0.015,97569.0,97568.0,0.71256348]
[1733895754782,0.0001,97577.0,97568.0,0.71256348]
[1733895754783,1e-08,97577.0,97568.0,0.71256348]
[1733895754987,1e-08,97577.0,97576.0,0.204968]
[1733895755183,1e-08,97577.0,97576.0,0.31029324]
[1733895757108,1e-08,97577.0,97576.0,0.33040411]
[1733895757531,1e-08,97577.0,97576.0,0.33340411]
[1733895757988,1e-08,97577.0,97576.0,0.33040411]
[1733895758185,1e-08,97577.0,97576.0,0.33940411]
[1733895758327,1e-08,97577.0,97576.0,0.34140411]
[1733895761909,1e-08,97577.0,97576.0,0.33240411]
[1733895762108,1e-08,97577.0,97576.0,0.33040411]
[1733895762324,1e-08,97577.0,97576.0,0.34240411]
[1733895763674,1e-08,97577.0,97576.0,0.33940411]
[1733895763892,1e-08,97577.0,97576.0,0.33040411]
[1733895764087,1e-08,97577.0,97576.0,0.33340411]
[1733895764285,1e-08,97577.0,97576.0,0.34240411]
[1733895764482,1e-08,97577.0,97576.0,0.33040411]
[1733895764900,1e-08,97577.0,97576.0,0.34240411]
[1733895765119,1e-08,97577.0,97576.0,0.33340411]
[1733895765318,1e-08,97577.0,97576.0,0.33040411]
[1733895765523,1e-08,97577.0,97576.0,0.33940411]
[1733895765721,1e-08,97577.0,97576.0,0.34240411]
[1733895766990,1e-08,97577.0,97576.0,0.33340411]
[1733895767603,1e-08,97577.0,97576.0,0.33040411]
[1733895767804,1e-08,97577.0,97576.0,0.33940411]
[1733895768005,1e-08,97577.0,97576.0,0.34240411]
[1733895768259,1e-08,97577.0,97576.0,0.33340411]
[1733895768461,1e-08,97577.0,97576.0,0.33940411]
[1733895768906,1e-08,97577.0,97576.0,0.34240411]
[1733895770272,1e-08,97577.0,97576.0,0.43420254]
[1733895771203,1e-08,97577.0,97576.0,0.34240411]
[1733895771586,1e-08,97577.0,97576.0,0.81940138]
[1733895771791,1e-08,97577.0,97576.0,0.8653006]
[1733895772123,1e-08,97577.0,97576.0,0.68170373]
[1733895774097,1e-08,97577.0,97576.0,1.06119981]
[1733895774459,1e-08,97577.0,97576.0,0.83170373]
[1733895776169,1e-08,97577.0,97576.0,1.06154165]
[1733895776376,0.0004,97589.0,97588.0,0.204943]
[1733895777604,0.00056488,97589.0,97588.0,0.204943]
[1733895777792,0.00056488,97589.0,97588.0,0.213943]
[1733895778011,0.00056488,97589.0,97588.0,0.31026824]
[1733895778211,0.00056488,97589.0,97588.0,0.31126824]
[1733895778418,0.00056488,97589.0,97588.0,0.32026824]
[1733895778917,0.00056488,97589.0,97588.0,0.3308467]
[1733895779119,0.00056488,97589.0,97588.0,0.6298467]
[1733895779237,0.00056488,97589.0,97588.0,0.72178609]
[1733895779872,0.0001716,97600.0,97596.0,0.15]
[1733895780073,0.0001716,97600.0,97599.0,0.20492]
[1733895780290,0.0001716,97600.0,97599.0,0.68794524]
[1733895780482,0.0001716,97600.0,97599.0,1.07694553]
[1733895781027,0.0784,97626.0,97625.0,0.204865]
[1733895781028,0.0767291,97626.0,97625.0,0.204865]
[1733895782336,0.07989392,97626.0,97625.0,0.204865]
[1733895782665,0.07989392,97626.0,97622.0,0.204869]
[1733895782871,0.07989392,97626.0,97622.0,0.40974]
[1733895783839,0.07989392,97626.0,97625.0,0.007]
[1733895784258,0.07989392,97626.0,97622.0,0.40974]
[1733895784463,0.07689392,97626.0,97622.0,0.40974]
[1733895784597,0.07689392,97626.0,97622.0,0.41674]
[1733895784801,0.07689392,97626.0,97622.0,0.40974]
[1733895785005,0.07689392,97626.0,97600.0,0.91304782]
[1733895785212,0.07689392,97626.0,97625.0,0.007]
[1733895785436,0.07989392,97626.0,97617.0,0.20488]
[1733895786032,0.07689392,97626.0,97622.0,0.009]
[1733895786210,0.07889392,97626.0,97622.0,0.009]
[1733895787314,0.07889392,97626.0,97617.0,0.409762]
[1733895787463,0.07889392,97626.0,97625.0,0.007]
[1733895787666,0.07889392,97626.0,97617.0,0.4208203]
[1733895787873,0.07689392,97626.0,97617.0,0.4208203]
[1733895788077,0.07689392,97626.0,97622.0,0.009]
[1733895788279,0.07889392,97626.0,97622.0,0.009]
[1733895788459,0.07889392,97626.0,97617.0,0.2159383]
[1733895788661,0.07889392,97626.0,97625.0,0.009]
[1733895789095,0.07689392,97626.0,97617.0,0.2159383]
[1733895789291,0.07889392,97626.0,97617.0,0.2159383]
[1733895790400,0.07889392,97626.0,97622.0,0.009]
[1733895790601,0.07689392,97626.0,97622.0,0.009]
[1733895790795,0.07689392,97626.0,97617.0,0.2159383]
[1733895790995,0.07889392,97626.0,97617.0,0.2249383]
[1733895791460,0.07689392,97626.0,97617.0,0.2159383]
[1733895791621,0.07689392,97626.0,97622.0,0.009]
[1733895791832,0.07889392,97626.0,97622.0,0.009]
[1733895792198,0.07889392,97626.0,97617.0,0.2159383]
[1733895792401,0.07689392,97626.0,97617.0,0.2249383]
[1733895792806,0.07889392,97626.0,97617.0,0.2249383]
[1733895794157,0.07889392,97626.0,97617.0,0.2159383]
[1733895794358,0.07889392,97626.0,97622.0,0.009]
[1733895794788,0.07889392,97626.0,97617.0,0.2159383]
[1733895795119,0.07889392,97626.0,97617.0,0.2249383]
[1733895795315,0.07689392,97626.0,97617.0,0.2159383]
[1733895795675,0.07889392,97626.0,97622.0,0.009]
[1733895796103,0.07889392,97626.0,97617.0,0.2159383]
[1733895797110,0.07689392,97626.0,97622.0,0.204871]
[1733895797511,0.07889392,97626.0,97622.0,0.204871]
[1733895797884,0.07889392,97626.0,97618.0,0.20488]
[1733895798463,0.07689392,97626.0,97618.0,0.20488]
[1733895798909,0.07889392,97626.0,97618.0,0.40976]
[1733895799120,0.07889392,97626.0,97622.0,0.009]
[1733895799434,0.07889392,97626.0,97618.0,0.40976]
[1733895800199,0.07689392,97626.0,97618.0,0.40976]
[1733895800601,0.07889392,97626.0,97618.0,0.40976]
[1733895800826,0.07889392,97626.0,97618.0,0.41876]
[1733895801406,0.07889392,97626.0,97618.0,0.21388]
[1733895803059,0.07889392,97626.0,97618.0,0.009]
[1733895804478,0.204865,97625.0,97618.0,0.009]
[1733895805190,0.07889392,97626.0,97618.0,0.009]
[1733895805543,0.07889392,97626.0,97617.0,0.0110583]
[1733895805771,0.07889392,97626.0,97616.0,0.02079898]
[1733895805934,0.07889392,97626.0,97618.0,0.009]
[1733895806533,0.07689392,97626.0,97618.0,0.009]
[1733895806721,0.001,97625.0,97618.0,0.009]
[1733895807278,0.40973,97625.0,97616.0,0.02079898]
[1733895807679,0.204876,97620.0,97618.0,0.009]
[1733895807893,0.204876,97620.0,97616.0,0.02079898]
[1733895808110,0.204865,97625.0,97616.0,0.02079898]
[1733895808316,0.204865,97625.0,97618.0,0.009]
[1733895808317,0.204875,97621.0,97618.0,0.009]
[1733895808519,0.204875,97621.0,97613.0,0.19]
[1733895808811,0.204884,97616.0,97613.0,0.19]
[1733895809781,0.20488,97618.0,97613.0,0.19]
[1733895809895,0.023,97617.0,97613.0,0.19]
[1733895811214,0.204884,97616.0,97613.0,0.19]
[1733895811416,0.204884,97616.0,97613.0,0.199]
[1733895811648,0.024,97617.0,97613.0,0.199]
[1733895811981,0.03383662,97617.0,97613.0,0.199]
[1733895812186,0.03383662,97617.0,97613.0,0.19]
[1733895812594,0.03383662,97617.0,97613.0,0.199]
[1733895812829,0.204884,97616.0,97613.0,0.199]
[1733895813398,0.205884,97616.0,97613.0,0.199]
[1733895813804,0.205884,97616.0,97613.0,0.19]
[1733895814225,0.205884,97616.0,97613.0,0.199]
[1733895814435,0.205884,97616.0,97613.0,0.19]
[1733895814639,0.001,97616.0,97614.0,0.204888]
[1733895816485,0.08793856,97629.0,97614.0,0.409776]
[1733895816690,0.001,97616.0,97614.0,0.409776]
[1733895816889,0.001,97616.0,97614.0,0.418776]
[1733895819299,0.023,97628.0,97614.0,0.418776]
[1733895819472,0.023,97628.0,97614.0,0.41894082]
[1733895820305,0.023,97628.0,97614.0,0.40994082]
[1733895820715,0.027,97628.0,97614.0,0.41494082]
[1733895821672,0.204861,97627.0,97614.0,0.21005282]
[1733895822279,0.10532524,97626.0,97614.0,0.00516482]
[1733895822493,0.023,97623.0,97614.0,0.00516482]
[1733895822691,0.023,97621.0,97614.0,0.00516482]
[1733895823336,0.023,97618.0,97614.0,0.00016482]
[1733895823584,0.023,97618.0,97614.0,0.00616482]
[1733895823988,0.023,97618.0,97614.0,0.00016482]
[1733895824373,0.023,97618.0,97614.0,0.00516482]
[1733895824571,0.025,97618.0,97614.0,0.00016482]
[1733895824746,0.002,97618.0,97614.0,0.00016482]
[1733895824946,0.002,97618.0,97614.0,0.00716482]
[1733895826231,0.204879,97619.0,97614.0,0.00716482]
[1733895826435,0.409758,97619.0,97614.0,0.00716482]
[1733895826637,0.02193566,97618.0,97614.0,0.00716482]
[1733895826870,0.204882,97617.0,97614.0,0.00716482]
[1733895827078,0.01893566,97616.0,97614.0,0.00716482]
[1733895827285,0.204886,97615.0,97614.0,0.00016482]
[1733895827503,0.204886,97615.0,97614.0,0.00616482]
[1733895828133,0.326286,97615.0,97614.0,0.00616482]
[1733895828344,0.326286,97615.0,97614.0,0.00016482]
[1733895828498,0.326286,97615.0,97614.0,0.00716482]
[1733895828702,0.34519572,97615.0,97614.0,0.00716482]
[1733895829304,0.326286,97615.0,97614.0,0.00716482]
[1733895829673,0.47554275,97615.0,97614.0,0.00716482]
[1733895829924,0.56754861,97615.0,97614.0,0.00016482]
[1733895830265,0.47354275,97615.0,97614.0,0.00816482]
[1733895830497,0.47354275,97615.0,97614.0,0.00016482]
[1733895830714,0.47654275,97615.0,97614.0,0.00016482]
[1733895830917,0.47654275,97615.0,97614.0,0.00516482]
[1733895831119,0.76455154,97615.0,97614.0,0.00516482]
[1733895831243,0.62654275,97615.0,97614.0,0.00516482]
[1733895832271,0.71850051,97615.0,97614.0,0.00516482]
[1733895832472,0.71550051,97615.0,97614.0,0.00516482]
[1733895832659,0.72150051,97615.0,97614.0,0.00616482]
[1733895832857,0.62954275,97615.0,97614.0,0.00616482]
[1733895833235,0.62954275,97615.0,97614.0,0.00016482]
[1733895833236,0.62354275,97615.0,97614.0,0.00016482]
[1733895833436,0.62454275,97615.0,97614.0,0.00016482]
[1733895833643,0.63054275,97615.0,97614.0,0.00116482]
[1733895833842,0.63046386,97615.0,97614.0,0.00116482]
[1733895833977,0.62446386,97615.0,97614.0,0.00016482]
[1733895834412,0.62446386,97615.0,97614.0,0.00116482]
[1733895834413,0.63046386,97615.0,97614.0,0.00116482]
[1733895834836,0.62946386,97615.0,97614.0,0.00116482]
[1733895835891,0.62346386,97615.0,97614.0,0.00016482]
[1733895836266,0.63146386,97615.0,97614.0,0.00016482]
[1733895836469,0.62946386,97615.0,97614.0,0.00016482]
[1733895836831,0.47546386,97615.0,97614.0,0.00016482]
[1733895837032,0.47534619,97615.0,97614.0,0.00016482]
[1733895837234,0.47934619,97615.0,97614.0,0.00016482]
[1733895837648,0.47534619,97615.0,97614.0,0.00016482]
[1733895837864,0.47834619,97615.0,97614.0,0.00016482]
[1733895838134,0.23172524,97615.0,97614.0,0.00016482]
[1733895838336,0.11032524,97615.0,97614.0,0.00016482]
[1733895838746,0.204873,97622.0,97614.0,0.00016482]
[1733895838747,0.204882,97617.0,97614.0,0.00016482]
[1733895838949,0.15,97639.0,97614.0,0.00016482]
[1733895838950,0.023,97623.0,97614.0,0.00016482]
[1733895839150,0.10532524,97622.0,97614.0,0.00016482]
[1733895839508,0.005,97615.0,97614.0,0.00016482]
[1733895839735,0.005,97615.0,97614.0,0.00516482]
[1733895840102,0.10532524,97622.0,97614.0,0.00016482]
[1733895840295,0.10832524,97622.0,97614.0,0.00416482]
[1733895840721,0.10532524,97622.0,97614.0,0.00016482]
[1733895840921,0.10532524,97622.0,97614.0,0.00916482]
[1733895841125,0.10532524,97622.0,97614.0,0.01016482]
[1733895841332,0.01870756,97629.0,97614.0,0.01016482]
[1733895841333,0.01870756,97629.0,97615.0,0.2731]
[1733895841576,0.07944641,97640.0,97615.0,0.2731]
[1733895841750,0.0795,97635.0,97615.0,0.2255]
[1733895841948,0.10532524,97634.0,97615.0,0.2255]
[1733895842775,0.023,97633.0,97615.0,0.2255]
[1733895842976,0.10532524,97632.0,97615.0,0.2255]